{"text_format":"1","workbook":"xlsx","n_sheets":9,"sheets":["by illness","Dogs","Cats","Rodents","Herps Birds Fish","Bacteria","Virus Fungus","Parasites","Prevention"],"not_rendered":{"charts":0,"images":2,"macros":1,"external_links":0,"defined_names":1,"comments":0,"pivot_tables":0},"unopened":[],"bounds":{"document_bytes":16777216,"sheet_cells":100000,"rows_first":2000,"rows_last":500,"rows_between":2000,"halvings":0,"cell_chars":16384,"cell_head_chars":4096},"cells_cut":0,"cells_raw":0,"read":"whole","date_system":"1900"}

{"sheet":"by illness","index":0,"n_rows":37,"n_cols":14,"rows_kept":37,"cut":false,"hidden":false,"merged":[]}
["PIJAC Zoonotic Disease Cross Reference Spreadsheet"]
[]
[]
["This worksheet contains macros."]
["To use the search features,  Enable Content."]
[]
[]
[]
[]
[]
["Click the buttons below to view by pet category or type of disease agent."]
[]
[]
[]
[]
[]
[]
[]
[]
[]
[]
[]
["Illness","Dogs","Cats","Birds","Rodents","Herps","Fish","Pet(s)","Agent","Route","Human Symptoms","onset","Pet Symptoms","PIJAC flyer"]
["Salmonellosis","Y","Y","Y","Y","Y","N","reptiles, amphibians, rodents, chickens, ducks, dogs, cats","bacteria (Salmonella); many strains","direct hand-to-mouth contact; indirect contact via cleaning cages or bedding, handling food or food bowls","diarrhea, fever, abdominal cramps","12-72 hours","may be asymptomatic","http://pijac.org/sites/default/files/pdfs/FLYERSalmonellosis071117.pdf"]
["Psittacosis","N","N","Y","N","N","N","birds; primarily parrot family, pigeons, poultry","bacteria (Chlamydia psittaci)","airborne; breathing dried secretions or excretions, primarily feces, feathers or other contaminated material","flu-like symptoms (fever, chills, headache, muscle aches, dry cough); occasionally severe respiratory problems","5-14 days","ruffled appearance, poor appetite, weight loss, lethargy, respiratory disease, and lime green droppings","http://pijac.org/sites/default/files/pdfs/FLYERPsittacosis011117.pdf"]
["Rat Bite Fever","N","N","N","Y","N","N","rodents (black rats, Norway rats; rarely mice, gerbils, guinea pigs)","bacteria (Streptobacillus moniliformis)","bite or scratch; contact with secretions","swelling around the wound, fever, enlarged lymph nodes, rash on hands and feet","3-10 days","asymptomatic","http://pijac.org/sites/default/files/pdfs/FLYERRatBiteFever111416.pdf"]
["Ringworm","Y","Y","Y","Y","N","N","primarily dogs, cats; also horses, hedgehogs, rodents, rabbits, monkeys, birds","fungus (Microsporum, Trichophyton, Epidermophyton)","direct contact with pet or bedding","itchy, red, raised, scaly patches often with sharply-defined edges giving the appearance of a ring; bald patches; discolored nails on hands and feet","variable","hair loss, scaling and crusting, generally around the ears and face and extremities; broken hairs","http://pijac.org/sites/default/files/pdfs/FLYERRingworm111016.pdf"]
["Mycobacteriosis","N","N","N","N","N","Y","fish (aquarium water)","bacteria (Mycobacterium marinum)","cleaning aquarium with open wound","small red bump, swelling of lymph nodes, development of additional nodules","up to 14 days","weight loss or poor condition, loss of scales and lesions","http://pijac.org/sites/default/files/pdfs/FLYERAtypicalMycobacteriosis111416.pdf"]
["Giardiasis","Y","Y","N","N","N","N","dogs, cats (primarily puppies and kittens)","parasite (Giardia duodenalis)","direct contact with feces, contaminated soil","diarrhea, bloating, abdominal discomfort, nausea and vomiting","7-14 days","diarrhea, bloating, abdominal discomfort, nausea and vomiting; some animals asymptomatic","http://pijac.org/sites/default/files/pdfs/FLYERGiardia050302017.pdf"]
["Lymphocytic Choriomeningitis","N","N","N","Y","N","N","rodents (house mice, Syrian hamsters; rarely rats, guinea pigs, other rodents)","virus (LCMV)","contact with urine, feces, saliva or blood; airborne transmission from breeding mice colonies","typically mild illness (aseptic meningitis) without need for treatment; occasionally fever, headache, muscle aches, loss of appetite, and nausea; may result in complications during pregnancy","8-13 days","typically asyptomatic","http://pijac.org/sites/default/files/pdfs/FLYERLymphocyticChoriomeningitis111416.pdf"]
["Toxoplasmosis","Y","Y","N","N","N","N","typically cats; other pets may be intermediate hosts","parasite (Toxoplasma gondii)","consuming  unpasteurized milk, raw or undercooked meat, handling unwashed fruit and vegetables; accidentally ingesting garden soil or sandbox soil contaminated with parasite egg forms","flu-like symptoms  (body aches, swollen lymph nodes, headache, fever, fatigue) that resolve without treatment; complications for those with weakened immune systems and pregnant women","1-3 weeks","adults typically asymptomatic; young pets with variable symptoms (fever, diarrhea, cough, shortness of breath, itching, seizures)","http://pijac.org/sites/default/files/pdfs/FLYERToxoplasmosis02092017.pdf"]
["Hemorrhagic Fever with Renal Syndrome (HFRS)/Seoul Virus","N","N","N","Y","N","N","rodents (Norway rats)","virus (Seoul Virus)","airborne (urine, feces or saliva of infected animals, dust from  nests or bedding); bite; direct contact of urine, feces, or saliva into  open wound or mucous membranes ","intense headaches, back and abdominal pain, fever, chills, nausea, blurred vision; facial flushing, inflammation or redness of the eyes, rash","typicaly 1-2 weeks; rarely up to 8 weeks","asymptomatic","http://pijac.org/sites/default/files/pdfs/FLYERSeoulVirus08092017.pdf"]
["Campylobacteriosis","Y","Y","N","N","N","N","dogs, cats (primarily puppies and kittens)","bacteria (Campylobacter)","direct fecal contact","diarrhea (sometimes bloody), cramping, abdominal pain, fever, nausea and vomiting","2-5 days","diarrhea (may be bloody with mucus and sometimes bile-stained), reduced appetite, vomiting","http://pijac.org/sites/default/files/pdfs/FLYERCampylobacter013118.pdf"]
["MRSA (mistaken as a zoonotic disease)/MSRP","Y","Y","Y","N","N","N","dogs, cats","bacteria (Methicillin-resistant Staphylococcus aureus in humans, MSRP (S. pseudintermedius) in dogs.","direct contact with animal, bedding, toys","bump on the skin that may be mistaken for a spider bite; area may be red, swollen, painful, warm to the touch, filled with pus","variable","MRSA is not a zoonotic disease. Dogs carry MRSP, which is not a human pathogen. Humans may transmit MRSA to pets, but this rarely causes illness and is eliminated by the pet's immune system.","http://pijac.org/sites/default/files/pdfs/PIJACDogCatZoonoticsSummary01262017.pdf"]
["Brucellosis","Y","N","N","N","N","N","dogs","bacteria (Brucella canis)","contact with broken sin, mucous membranes","variable; flu-like symptoms (fever, chills, headache, back pain); night sweats, swollen lymph nodes","typically up to 2 weeks; uncommonly up to 3 months","late term abortion without prior symptoms","http://pijac.org/sites/default/files/pdfs/PIJACDogCatZoonoticsSummary01262017.pdf"]
["Cat Scratch Disease","N","Y","N","N","N","N","cats","bacteria (Bartonella henselae)","bite or scratch; contact with saliva in broken skin","swollen lymph nodes, fever, skin lesion at bite area, headache, poor appetite, fatigue","3-14 days","typically asymptomatic","http://pijac.org/sites/default/files/pdfs/PIJACDogCatZoonoticsSummary01262017.pdf"]
["Toxocariasis","Y","Y","N","N","N","N","dogs, cats (primarily puppies and kittens)","parasite (roundworm Toxocara)","ingestion of parasite eggs in soil, sand"," typically mild in children; if larva migrate to organs: fatigue, anorexia, weight loss, pneumonia, fever, cough, bronchospasm, abdominal pain, headaches, rashes, seizures; ocular problems (decreased vision, red eye, or white pupil)","variable","lack of growth; dull coat; potbellied appearance; migrating larvae may cause pneumonia; diarrhea with mucus","http://pijac.org/sites/default/files/pdfs/PIJACDogCatZoonoticsSummary01262017.pdf"]

{"sheet":"Dogs","index":1,"n_rows":46,"n_cols":5,"rows_kept":46,"cut":false,"hidden":false,"merged":[]}
["Illnesses Carried by Dogs  (page 1 of 3)"]
["Agent","Route","Human Symptoms","onset","Pet Symptoms"]
[]
["Salmonellosis"]
[{"$f":"'by illness'!I24","v":"bacteria (Salmonella); many strains"},{"$f":"'by illness'!J24","v":"direct hand-to-mouth contact; indirect contact via cleaning cages or bedding, handling food or food bowls"},{"$f":"'by illness'!K24","v":"diarrhea, fever, abdominal cramps"},{"$f":"'by illness'!L24","v":"12-72 hours"},{"$f":"'by illness'!M24","v":"may be asymptomatic"}]
["PIJAC flyer",{"$f":"'by illness'!N24","v":"http://pijac.org/sites/default/files/pdfs/FLYERSalmonellosis071117.pdf"}]
[]
[]
["Ringworm"]
[{"$f":"'by illness'!I27","v":"fungus (Microsporum, Trichophyton, Epidermophyton)"},{"$f":"'by illness'!J27","v":"direct contact with pet or bedding"},{"$f":"'by illness'!K27","v":"itchy, red, raised, scaly patches often with sharply-defined edges giving the appearance of a ring; bald patches; discolored nails on hands and feet"},{"$f":"'by illness'!L27","v":"variable"},{"$f":"'by illness'!M27","v":"hair loss, scaling and crusting, generally around the ears and face and extremities; broken hairs"}]
["PIJAC flyer",{"$f":"'by illness'!N27","v":"http://pijac.org/sites/default/files/pdfs/FLYERRingworm111016.pdf"}]
[]
[]
["Giardiasis"]
[{"$f":"'by illness'!I29","v":"parasite (Giardia duodenalis)"},{"$f":"'by illness'!J29","v":"direct contact with feces, contaminated soil"},{"$f":"'by illness'!K29","v":"diarrhea, bloating, abdominal discomfort, nausea and vomiting"},{"$f":"'by illness'!L29","v":"7-14 days"},{"$f":"'by illness'!M29","v":"diarrhea, bloating, abdominal discomfort, nausea and vomiting; some animals asymptomatic"}]
["PIJAC flyer",{"$f":"'by illness'!N29","v":"http://pijac.org/sites/default/files/pdfs/FLYERGiardia050302017.pdf"}]
[]
[]
[]
[]
["Illnesses Carried by Dogs (page 2 of 3)"]
["Agent","Route","Human Symptoms","onset","Pet Symptoms"]
["Campylobacteriosis"]
[{"$f":"'by illness'!I33","v":"bacteria (Campylobacter)"},{"$f":"'by illness'!J33","v":"direct fecal contact"},{"$f":"'by illness'!K33","v":"diarrhea (sometimes bloody), cramping, abdominal pain, fever, nausea and vomiting"},{"$f":"'by illness'!L33","v":"2-5 days"},{"$f":"'by illness'!M33","v":"diarrhea (may be bloody with mucus and sometimes bile-stained), reduced appetite, vomiting"}]
["PIJAC flyer","http://pijac.org/sites/default/files/pdfs/FLYERCampylobacter013118.pdf"]
[]
["MRSA"]
[{"$f":"+'by illness'!I34","v":"bacteria (Methicillin-resistant Staphylococcus aureus in humans, MSRP (S. pseudintermedius) in dogs."},{"$f":"+'by illness'!J34","v":"direct contact with animal, bedding, toys"},{"$f":"+'by illness'!K34","v":"bump on the skin that may be mistaken for a spider bite; area may be red, swollen, painful, warm to the touch, filled with pus"},{"$f":"+'by illness'!L34","v":"variable"},"MRSA is not a zoonotic disease. Dogs carry MRSP, which is not a human pathogen. Humans may transmit MRSA to pets, but this rarely causes illness and is eliminated by the pet's immune system."]
["PIJAC flyer",{"$f":"'by illness'!N34","v":"http://pijac.org/sites/default/files/pdfs/PIJACDogCatZoonoticsSummary01262017.pdf"}]
[]
["Brucellosis"]
[{"$f":"+'by illness'!I35","v":"bacteria (Brucella canis)"},{"$f":"+'by illness'!J35","v":"contact with broken sin, mucous membranes"},{"$f":"+'by illness'!K35","v":"variable; flu-like symptoms (fever, chills, headache, back pain); night sweats, swollen lymph nodes"},{"$f":"+'by illness'!L35","v":"typically up to 2 weeks; uncommonly up to 3 months"},{"$f":"+'by illness'!M35","v":"late term abortion without prior symptoms"}]
["PIJAC flyer",{"$f":"'by illness'!N34","v":"http://pijac.org/sites/default/files/pdfs/PIJACDogCatZoonoticsSummary01262017.pdf"}]
[]
[]
[]
[]
[]
[]
[]
[]
["Illnesses Carried by Dogs (page 3 of 3)"]
[]
["Toxocariasis"]
[{"$f":"'by illness'!I37","v":"parasite (roundworm Toxocara)"},{"$f":"'by illness'!J37","v":"ingestion of parasite eggs in soil, sand"},{"$f":"'by illness'!K37","v":" typically mild in children; if larva migrate to organs: fatigue, anorexia, weight loss, pneumonia, fever, cough, bronchospasm, abdominal pain, headaches, rashes, seizures; ocular problems (decreased vision, red eye, or white pupil)"},{"$f":"'by illness'!L37","v":"variable"},{"$f":"'by illness'!M37","v":"lack of growth; dull coat; potbellied appearance; migrating larvae may cause pneumonia; diarrhea with mucus"}]
["PIJAC flyer",{"$f":"+'by illness'!N37","v":"http://pijac.org/sites/default/files/pdfs/PIJACDogCatZoonoticsSummary01262017.pdf"}]

{"sheet":"Cats","index":2,"n_rows":37,"n_cols":5,"rows_kept":37,"cut":false,"hidden":false,"merged":[]}
["Illnesses Carried by Cats (page 1 of 2)"]
["Agent","Route","Human Symptoms","onset","Pet Symptoms"]
["Salmonellosis"]
["bacteria (Salmonella); many strains","direct hand-to-mouth contact; indirect contact via cleaning cages or bedding, handling food or food bowls","diarrhea, fever, abdominal cramps","12-72 hours","may be asymptomatic"]
["PIJAC flyer","http://pijac.org/sites/default/files/pdfs/FLYERSalmonellosis071117.pdf"]
[]
["Ringworm"]
["fungus (Microsporum, Trichophyton, Epidermophyton)","direct contact with pet or bedding","itchy, red, raised, scaly patches often with sharply-defined edges giving the appearance of a ring; bald patches; discolored nails on hands and feet","variable","hair loss, scaling and crusting, generally around the ears and face and extremities; broken hairs"]
["PIJAC flyer","http://pijac.org/sites/default/files/pdfs/FLYERRingworm111016.pdf"]
[]
["Giardiasis"]
["parasite (Giardia duodenalis)","direct contact with feces, contaminated soil","diarrhea, bloating, abdominal discomfort, nausea and vomiting","7-14 days","diarrhea, bloating, abdominal discomfort, nausea and vomiting; some animals asymptomatic"]
["PIJAC flyer","http://pijac.org/sites/default/files/pdfs/FLYERGiardia050302017.pdf"]
[]
[]
[]
["Campylobacteriosis"]
["bacteria (Campylobacter)","direct fecal contact","diarrhea (sometimes bloody), cramping, abdominal pain, fever, nausea and vomiting","2-5 days","diarrhea (may be bloody with mucus and sometimes bile-stained), reduced appetite, vomiting"]
["PIJAC flyer","http://pijac.org/sites/default/files/pdfs/FLYERCampylobacter013118.pdf"]
[]
["Illnesses Carried by Cats (page 2 of 2)"]
["Agent","Route","Human Symptoms","onset","Pet Symptoms"]
["MRSA"]
["bacteria (Staphylococcus  resistant to certain antibiotics)","direct contact with animal, bedding, toys","bump on the skin that may be mistaken for a spider bite; area may be red, swollen, painful, warm to the touch, filled with pus","variable"]
["PIJAC flyer","http://pijac.org/sites/default/files/pdfs/PIJACDogCatZoonoticsSummary01262017.pdf"]
[]
["Toxoplasmosis"]
["parasite (Toxoplasma gondii)","consuming  unpasteurized milk, raw or undercooked meat, handling unwashed fruit and vegetables; accidentally ingesting garden soil or sandbox soil contaminated with parasite egg forms","flu-like symptoms  (body aches, swollen lymph nodes, headache, fever, fatigue) that resolve without treatment; complications for those with weakened immune systems and pregnant women","1-3 weeks","adults typically asymptomatic; young pets with variable symptoms (fever, diarrhea, cough, shortness of breath, itching, seizures)"]
["PIJAC flyer","http://pijac.org/sites/default/files/pdfs/FLYERToxoplasmosis02092017.pdf"]
[]
["Toxocariasis"]
["parasite (roundworm Toxocara)","ingestion of parasite eggs in soil, sand"," typically mild in children; if larva migrate to organs: fatigue, anorexia, weight loss, pneumonia, fever, cough, bronchospasm, abdominal pain, headaches, rashes, seizures; ocular problems (decreased vision, red eye, or white pupil)","variable","lack of growth; dull coat; potbellied appearance; migrating larvae may cause pneumonia; diarrhea with mucus"]
["PIJAC flyer","http://pijac.org/sites/default/files/pdfs/PIJACDogCatZoonoticsSummary01262017.pdf"]
[]
["Cat Scratch Disease"]
["bacteria (Bartonella henselae)","bite or scratch; contact with saliva in broken skin","swollen lymph nodes, fever, skin lesion at bite area, headache, poor appetite, fatigue","3-14 days","typically asymptomatic"]
["PIJAC flyer","http://pijac.org/sites/default/files/pdfs/PIJACDogCatZoonoticsSummary01262017.pdf"]

{"sheet":"Rodents","index":3,"n_rows":29,"n_cols":5,"rows_kept":29,"cut":false,"hidden":false,"merged":[]}
["Illnesses Carried by Rodents  (page 1 of 2)"]
["Agent","Route","Human Symptoms","onset","Pet Symptoms"]
[]
["Salmonellosis","all rodents"]
["bacteria (Salmonella); many strains","direct hand-to-mouth contact; indirect contact via cleaning cages or bedding, handling food or food bowls","diarrhea, fever, abdominal cramps","12-72 hours","may be asymptomatic"]
["PIJAC flyer","http://pijac.org/sites/default/files/pdfs/FLYERSalmonellosis071117.pdf"]
[]
["Rat Bite Fever","black rats, Norway rats; rarely mice, gerbils, guinea pigs"]
["bacteria (Streptobacillus moniliformis)","bite or scratch; contact with secretions","swelling around the wound, fever, enlarged lymph nodes, rash on hands and feet","3-10 days","asymptomatic"]
["PIJAC flyer","http://pijac.org/sites/default/files/pdfs/FLYERRatBiteFever111416.pdf"]
[]
["Ringworm","all rodents"]
["fungus (Microsporum, Trichophyton, Epidermophyton)","direct contact with pet or bedding","itchy, red, raised, scaly patches often with sharply-defined edges giving the appearance of a ring; bald patches; discolored nails on hands and feet","variable","hair loss, scaling and crusting, generally around the ears and face and extremities; broken hairs"]
["PIJAC flyer","http://pijac.org/sites/default/files/pdfs/FLYERRingworm111016.pdf"]
[]
[]
[]
[]
[]
["Illnesses Carried by Rodents  (page 2 of 2)"]
["Agent","Route","Human Symptoms","onset","Pet Symptoms"]
[]
["Lymphocytic Choriomeningitis","house mice, Syrian hamsters; rarely rats, guinea pigs, other rodents"]
["virus (LCMV)","contact with urine, feces, saliva or blood; airborne transmission from breeding mice colonies","typically mild illness (aseptic meningitis) without need for treatment; occasionally fever, headache, muscle aches, loss of appetite, and nausea; may result in complications during pregnancy","8-13 days","typically asyptomatic"]
["PIJAC flyer","http://pijac.org/sites/default/files/pdfs/FLYERLymphocyticChoriomeningitis111416.pdf"]
[]
["Hemorrhagic Fever with Renal Syndrome (HFRS)/Seoul Virus",null,null,"Norway rats"]
["virus (Seoul Virus)","airborne (urine, feces or saliva of infected animals, dust from  nests or bedding); bite; direct contact of urine, feces, or saliva into  open wound or mucous membranes ","intense headaches, back and abdominal pain, fever, chills, nausea, blurred vision; facial flushing, inflammation or redness of the eyes, rash","typicaly 1-2 weeks; rarely up to 8 weeks","asymptomatic"]
["PIJAC flyer","http://pijac.org/sites/default/files/pdfs/FLYERSeoulVirus08092017.pdf"]

{"sheet":"Herps Birds Fish","index":4,"n_rows":19,"n_cols":5,"rows_kept":19,"cut":false,"hidden":false,"merged":[]}
["ILLNESSES CARRIED BY REPTILES OR AMPHIBIANS"]
["Agent","Route","Human Symptoms","onset","Pet Symptoms"]
["Salmonellosis"]
["bacteria (Salmonella); many strains","direct hand-to-mouth contact; indirect contact via cleaning cages or bedding, handling food or food bowls","diarrhea, fever, abdominal cramps","12-72 hours","may be asymptomatic"]
["PIJAC flyer","http://pijac.org/sites/default/files/pdfs/FLYERSalmonellosis071117.pdf"]
[]
["ILLNESSES CARRIED BY BIRDS"]
["Psittacosis/Avian Chlamydiosis",null,"birds; primarily parrot family, pigeons, poultry"]
["bacteria (Chlamydia psittaci)","airborne; breathing dried secretions or excretions, primarily feces, feathers or other contaminated material","flu-like symptoms (fever, chills, headache, muscle aches, dry cough); occasionally severe respiratory problems","5-14 days","ruffled appearance, poor appetite, weight loss, lethargy, respiratory disease, and lime green droppings"]
["PIJAC flyer","http://pijac.org/sites/default/files/pdfs/FLYERPsittacosis011117.pdf"]
[]
["Ringworm"]
["fungus (Microsporum, Trichophyton, Epidermophyton)","direct contact with pet or bedding","itchy, red, raised, scaly patches often with sharply-defined edges giving the appearance of a ring; bald patches; discolored nails on hands and feet","variable","hair loss, scaling and crusting, generally around the ears and face and extremities; broken hairs"]
["PIJAC flyer","http://pijac.org/sites/default/files/pdfs/FLYERRingworm111016.pdf"]
[]
["ILLNESSES CARRIED BY FISH"]
["Atypical Mycobacteriosis"]
["bacteria (Mycobacterium marinum)","cleaning aquarium with open wound","small red bump, swelling of lymph nodes, development of additional nodules","up to 14 days","weight loss or poor condition, loss of scales and lesions"]
["PIJAC flyer","http://pijac.org/sites/default/files/pdfs/FLYERAtypicalMycobacteriosis111416.pdf"]

{"sheet":"Bacteria","index":5,"n_rows":31,"n_cols":6,"rows_kept":31,"cut":false,"hidden":false,"merged":[]}
["BACTERIAL ILLNESSES (page 1 of 2)"]
["Pet(s)","Agent","Route","Human Symptoms","onset","Pet Symptoms"]
["Salmonellosis"]
["reptiles (particularly turtles), amphibians, rodents, chickens, ducks, dogs, cats","bacteria (Salmonella); many strains","direct hand-to-mouth contact; indirect contact via cleaning cages or bedding, handling food or food bowls","diarrhea, fever, abdominal cramps","12-72 hours","may be asymptomatic"]
["PIJAC flyer","http://pijac.org/sites/default/files/pdfs/FLYERSalmonellosis071117.pdf"]
[]
["Psittacosis/Avian Chlamydiosis"]
["birds; primarily parrot family, pigeons, poultry","bacteria (Chlamydia psittaci)","airborne; breathing dried secretions or excretions, primarily feces, feathers or other contaminated material","flu-like symptoms (fever, chills, headache, muscle aches, dry cough); occasionally severe respiratory problems","5-14 days","ruffled appearance, poor appetite, weight loss, lethargy, respiratory disease, and lime green droppings"]
["PIJAC flyer","http://pijac.org/sites/default/files/pdfs/FLYERPsittacosis011117.pdf"]
[]
["Rat Bite Fever"]
["rodents (black rats, Norway rats; rarely mice, gerbils, guinea pigs)","bacteria (Streptobacillus moniliformis)","bite or scratch; contact with secretions","swelling around the wound, fever, enlarged lymph nodes, rash on hands and feet","3-10 days","asymptomatic"]
["PIJAC flyer","http://pijac.org/sites/default/files/pdfs/FLYERRatBiteFever111416.pdf"]
[]
["Atypical Mycobacteriosis"]
["fish (aquarium water)","bacteria (Mycobacterium marinum)","cleaning aquarium with open wound","small red bump, swelling of lymph nodes, development of additional nodules","up to 14 days","weight loss or poor condition, loss of scales and lesions"]
["PIJAC flyer","http://pijac.org/sites/default/files/pdfs/FLYERAtypicalMycobacteriosis111416.pdf"]
[]
["BACTERIAL ILLNESSES (page 2 of 2)"]
["Pet(s)","Agent","Route","Human Symptoms","onset","Pet Symptoms"]
["Campylobacteriosis"]
["dogs, cats (primarily puppies and kittens)","bacteria (Campylobacter)","ingestion of fecal material from handling animals or habitats ","diarrhea (sometimes bloody), cramping, abdominal pain, fever, nausea and vomiting","2-5 days","diarrhea (may be bloody with mucus and sometimes bile-stained), reduced appetite, vomiting"]
["PIJAC flyer"]
[]
["MRSA (Methicillin Resistant Staphylococcus aureus)"]
["dogs, cats","bacteria (Staphylococcus  resistant to certain antibiotics)","direct contact with animal, bedding, toys","bump on the skin that may be mistaken for a spider bite; area may be red, swollen, painful, warm to the touch, filled with pus","variable","?"]
["PIJAC flyer","http://pijac.org/sites/default/files/pdfs/PIJACDogCatZoonoticsSummary01262017.pdf"]
[]
["Cat Scratch Disease"]
["cats","bacteria (Bartonella henselae)","bite or scratch; contact with saliva in broken skin","swollen lymph nodes, fever, skin lesion at bite area, headache, poor appetite, fatigue","3-14 days","typically asymptomatic"]
["PIJAC flyer","http://pijac.org/sites/default/files/pdfs/PIJACDogCatZoonoticsSummary01262017.pdf"]

{"sheet":"Virus Fungus","index":6,"n_rows":14,"n_cols":6,"rows_kept":14,"cut":false,"hidden":false,"merged":[]}
["VIRAL ILLNESSES"]
["Pet(s)","Agent","Route","Human Symptoms","onset","Pet Symptoms"]
["Lymphocytic Choriomeningitis"]
["rodents (house mice, Syrian hamsters; rarely rats, guinea pigs, other rodents)","virus (LCMV)","contact with urine, feces, saliva or blood; airborne transmission from breeding mice colonies","typically mild illness (aseptic meningitis) without need for treatment; occasionally fever, headache, muscle aches, loss of appetite, and nausea; may result in complications during pregnancy","8-13 days","typically asyptomatic"]
["PIJAC flyer","http://pijac.org/sites/default/files/pdfs/FLYERLymphocyticChoriomeningitis111416.pdf"]
[]
["Hemorrhagic Fever with Renal Syndrome (HFRS)/Seoul Virus"]
["rodents (Norway rats)","virus (Seoul Virus)","airborne (urine, feces or saliva of infected animals, dust from  nests or bedding); bite; direct contact of urine, feces, or saliva into  open wound or mucous membranes ","intense headaches, back and abdominal pain, fever, chills, nausea, blurred vision; facial flushing, inflammation or redness of the eyes, rash","typicaly 1-2 weeks; rarely up to 8 weeks","asymptomatic"]
["PIJAC flyer","http://pijac.org/sites/default/files/pdfs/FLYERSeoulVirus08092017.pdf"]
[]
["FUNGAL ILLNESS"]
["Ringworm"]
["primarily dogs, cats; also horses, hedgehogs, rodents, rabbits, monkeys, birds","fungus (Microsporum, Trichophyton, Epidermophyton)","direct contact with pet or bedding","itchy, red, raised, scaly patches often with sharply-defined edges giving the appearance of a ring; bald patches; discolored nails on hands and feet","variable","hair loss, scaling and crusting, generally around the ears and face and extremities; broken hairs"]
["PIJAC flyer","http://pijac.org/sites/default/files/pdfs/FLYERRingworm111016.pdf"]

{"sheet":"Parasites","index":7,"n_rows":14,"n_cols":6,"rows_kept":14,"cut":false,"hidden":false,"merged":[]}
["PARASITIC ILLNESSES"]
[]
["Pet(s)","Agent","Route","Human Symptoms","onset","Pet Symptoms"]
["Giardiasis"]
["dogs, cats (primarily puppies and kittens)","parasite (Giardia duodenalis)","direct contact with feces, contaminated soil","diarrhea, bloating, abdominal discomfort, nausea and vomiting","7-14 days","diarrhea, bloating, abdominal discomfort, nausea and vomiting; some animals asymptomatic"]
["PIJAC flyer","http://pijac.org/sites/default/files/pdfs/FLYERGiardia050302017.pdf"]
[]
["Toxoplasmosis"]
["typically cats; other pets may be intermediate hosts","parasite (Toxoplasma gondii)","accidentally ingesting contaminated cat feces while cleaning a litter box, bedding, toys or other items","flu-like symptoms  (body aches, swollen lymph nodes, headache, fever, fatigue) that resolve without treatment; complications for those with weakened immune systems and pregnant women","1-3 weeks","adults typically asymptomatic; young pets with variable symptoms (fever, diarrhea, cough, shortness of breath, itching, seizures)"]
["PIJAC flyer","http://pijac.org/sites/default/files/pdfs/FLYERToxoplasmosis02092017.pdf"]
[]
["Toxocariasis"]
["dogs, cats (primarily puppies and kittens)","parasite (roundworm Toxocara)","ingestion of parasite eggs in soil, sand"," typically mild in children; if larva migrate to organs: fatigue, anorexia, weight loss, pneumonia, fever, cough, bronchospasm, abdominal pain, headaches, rashes, seizures; ocular problems (decreased vision, red eye, or white pupil)","variable","lack of growth; dull coat; potbellied appearance; migrating larvae may cause pneumonia; diarrhea with mucus"]
["PIJAC flyer","http://pijac.org/sites/default/files/pdfs/PIJACDogCatZoonoticsSummary01262017.pdf"]

{"sheet":"Prevention","index":8,"n_rows":55,"n_cols":1,"rows_kept":55,"cut":false,"hidden":false,"merged":[]}
["General Zoonotic Prevention Measures for Retail Store Associates"]
[]
["Treat all companion animals as potential carriers of infectious diseases: always wash your hands before and after handling the animal, its habitat and anything the animal contacts."]
["Store staff should avoid contact with animals if they have illnesses that can be transmitted to pets (e.g., influenza)."]
["Pregnant women, children under the age of 5, senior citizens and people with weakened immune systems should contact their physician before purchasing or caring for pets. Reptiles and amphibians are not recommended as pets for this group."]
[]
["Zoonotic infections that occur primarily through hand to mouth transmission,  through open skin wounds or contact with mucous membranes."]
["(e.g., Salmonella & Campylobacter bacteria)"]
["Wash hands thoroughly with soap and running water "]
["wafter handling animals, their habitats and anything in their habitats, pet food and treats."]
["wbefore eating, drinking, or smoking."]
["Do not wash food bowls, water dispensers, enclosures, and habitat furniture in human food preparation areas."]
["Do not touch hands to face, eyes or mouth when cleaning or handling animals."]
["Do not clean aquaria  with injuries to the hands and arms. "]
["Do not eat, drink, prepare or store food in animal areas."]
["Wear gloves if there is a possibility of contact with saliva, urine or feces, particularly if a person has skin wounds or abrasions (including when handling bedding or nesting material)."]
["Wear gloves when cleaning/disinfecting habitats, including rodents, dogs /puppies, and cats/kittens"]
[]
["Zoonotic infections that occur primarily through aerosol transmission (bacteria like Chlamydia, viruses like LCMV)"]
["Do not vacuum or sweep rat and bird droppings, urine or bedding during regular cleaning of habitats."]
["If power washing is used to clean rodent areas  and equipment (animals removed), wear protective outerwear, gloves, and facial protection, including goggles and a respirator."]
["Exhaust ventilation should be sufficient to prevent accumulation of aerosols and prevent cross contamination of rooms holding birds (Psittacosis/Avian Chlamydiosis)."]
["Minimize the circulation of feathers and dust by wet mopping the floor frequently with disinfectants; prevent air currents and drafts within the area."]
["Reduce contamination from dust and fecal material by spraying the floor with a disinfectant or water before sweeping it. A vacuum cleaner or pressure washer may aerosolize infectious particles and should be used with caution. "]
[]
[]
[]
["Prevention of zoonotic infections that occur primarily through skin penetration."]
["Handle rodents appropriately to minimize the chance of a bite or scratch. Two options:"]
["wby the base of the tail; if the animal becomes agitated and begins to “spin”, put the rat on a solid surface or in a container. "]
["wgrasp the rat around the midsection, applying only enough pressure to control the animal."]
["Staff regularly handling rats should consider protective gloves, e.g., nylon/PVC coated gloves ($4 - $8/pair) that are flexible and easily sanitized; inexpensive latex gloves can be worn over the protective gloves and discarded between habitats to prevent cross-contamination"]
[]
["Prevention of transmission of zoonotic illnesses to pets."]
["Don’t feed raw meat diets or unpasteurized dairy poducts to pets."]
["Rodents:"]
["Deploy barriers (e.g., secure doors, windows, drains) to the entry of wild mice and wild birds to prevent disease transmission to store animals (LCMV, Seoul Virus and Rat Bite Fever, Psittacosis)."]
["Maintain an active pest control program, e.g., rodent traps at the perimeter of the facility, in rodent rooms, and areas where feed is stored). "]
["Birds:"]
["The bottom of bird enclosures should be wire mesh. "]
["Solid-sided enclosures or barriers should be used if enclosures are adjoining."]
["Substrate/litter that will not produce dust (e.g., newspapers) should be placed underneath the mesh."]
[]
["Management of suspected or confirmed illness"]
["Disinfect enclosure, food and water bowls."]
["Immediately clean up feces; wear disposable, waterproof gloves during cleanup."]
["Regularly clean/disinfect bedding."]
["Psittacosis/Avian Chlamydiosis"]
["Wear protective clothing (smock or coveralls, gloves, eyewear, protective footwear, disposable surgical cap, disposable fitted particulate respirator) when cleaning enclosures or handling potentially infected birds. "]
["Enclosures, bowls and substrate should be cleaned and disinfected often to remove possible sources of infection. Particulate matter should be removed before disinfecting with ammonium compounds, accelerated hydrogen peroxide or bleach. Rinse well to remove disinfectants."]
["Thoroughly scrub soiled enclosures of infected or exposed birds with a detergent to remove all fecal debris, rinse and disinfect (most disinfectants require 5-10 minutes of contact time), and re-rinse to remove the disinfectant. "]
["Discard all items that cannot be adequately disinfected (e.g., wooden perches, ropes, nest material, substrate/litter)."]
["Frequently remove waste material from the enclosure (after moistening the material), and burn or double-bag the waste for disposal."]
["Atypical Mycobacterosis: Staff should wear gloves when cleaning tanks or handling aquarium gravel or filters.     "]
["Ringworm: Fungal spores may persist in shed skin cells and hair; clean pet bedding with bleach solution or dispose of it appropriately."]